[Event "Late-Titled-Tuesday-Blitz-May-28-2024"]
[Site "Chess.com"]
[Date "2024.05.28"]
[Round "4"]
[White "Viktor_Poddubnyi"]
[Black "Lion_DL"]
[Result "1-0"]
[WhiteElo "2324"]
[BlackElo "2503"]
[TimeControl "180+1"]
[EndTime "14:39:31 PDT"]
[Termination "Viktor_Poddubnyi won by checkmate"]

1. e4 {[%clk 0:02:59.8]} 1... c5 {[%clk 0:03:00.1]} 2. Nf3 {[%clk 0:02:59.4]}
2... e6 {[%clk 0:03:00.8]} 3. c3 {[%clk 0:02:59.1]} 3... Nf6 {[%clk 0:03:00.4]}
4. e5 {[%clk 0:02:58.8]} 4... Nd5 {[%clk 0:03:01.1]} 5. d4 {[%clk 0:02:59.3]}
5... cxd4 {[%clk 0:03:00.8]} 6. cxd4 {[%clk 0:03:00.2]} 6... d6 {[%clk
0:03:01.4]} 7. Bc4 {[%clk 0:03:00.4]} 7... Nb6 {[%clk 0:03:01.7]} 8. Bb3 {[%clk
0:02:58.3]} 8... dxe5 {[%clk 0:03:01.9]} 9. Nxe5 {[%clk 0:02:56.3]} 9... Nc6
{[%clk 0:03:01.4]} 10. Nxc6 {[%clk 0:02:50.8]} 10... bxc6 {[%clk 0:03:02.3]} 11.
O-O {[%clk 0:02:50.4]} 11... Bd6 {[%clk 0:03:02.2]} 12. Nc3 {[%clk 0:02:35.9]}
12... Qc7 {[%clk 0:02:56.4]} 13. Qh5 {[%clk 0:02:27.6]} 13... Nd5 {[%clk
0:02:43]} 14. Ne4 {[%clk 0:02:25.9]} 14... Bf4 {[%clk 0:02:34.4]} 15. Bxd5
{[%clk 0:01:39.7]} 15... cxd5 {[%clk 0:02:21.8]} 16. Qg4 {[%clk 0:01:25.2]}
16... Bxh2+ {[%clk 0:01:50.8]} 17. Kh1 {[%clk 0:01:24.6]} 17... Kf8 {[%clk
0:01:51.5]} 18. Ng5 {[%clk 0:01:01.8]} 18... Bd6 {[%clk 0:01:44.8]} 19. Be3
{[%clk 0:00:53]} 19... e5 {[%clk 0:01:38.3]} 20. Qh5 {[%clk 0:00:41.6]} 20...
Bf5 {[%clk 0:01:31.3]} 21. Rac1 {[%clk 0:00:37.7]} 21... Qe7 {[%clk 0:01:30.7]}
22. dxe5 {[%clk 0:00:30.7]} 22... Bg6 {[%clk 0:00:48.9]} 23. exd6 {[%clk
0:00:17.4]} 23... Bxh5 {[%clk 0:00:49.4]} 24. dxe7+ {[%clk 0:00:16.7]} 24...
Kxe7 {[%clk 0:00:50.3]} 25. Bc5+ {[%clk 0:00:15.7]} 25... Kf6 {[%clk 0:00:50.3]}
26. Nh3 {[%clk 0:00:14.5]} 26... Bg6 {[%clk 0:00:49.5]} 27. Bd4+ {[%clk
0:00:13.4]} 27... Ke7 {[%clk 0:00:48]} 28. Bxg7 {[%clk 0:00:13.6]} 28... Rhd8
{[%clk 0:00:48.2]} 29. Rfe1+ {[%clk 0:00:13.1]} 29... Kd7 {[%clk 0:00:47.5]} 30.
Bf6 {[%clk 0:00:13.2]} 30... Re8 {[%clk 0:00:46.1]} 31. Nf4 {[%clk 0:00:13.4]}
31... Be4 {[%clk 0:00:43.6]} 32. f3 {[%clk 0:00:12.2]} 32... Bf5 {[%clk
0:00:42.3]} 33. Nxd5 {[%clk 0:00:11.9]} 33... Rac8 {[%clk 0:00:40.7]} 34. Rcd1
{[%clk 0:00:09.4]} 34... Rxe1+ {[%clk 0:00:40.1]} 35. Rxe1 {[%clk 0:00:10.3]}
35... Rc2 {[%clk 0:00:40.4]} 36. Ne3 {[%clk 0:00:10.1]} 36... Rc5 {[%clk
0:00:39.2]} 37. Nxf5 {[%clk 0:00:09.6]} 37... Rxf5 {[%clk 0:00:40.1]} 38. Bc3
{[%clk 0:00:09.5]} 38... Rh5+ {[%clk 0:00:37.1]} 39. Kg1 {[%clk 0:00:09.8]}
39... Rd5 {[%clk 0:00:37.9]} 40. Kf2 {[%clk 0:00:09.6]} 40... Rd6 {[%clk
0:00:37.6]} 41. Ke2 {[%clk 0:00:08.8]} 41... Re6+ {[%clk 0:00:37.9]} 42. Kd2
{[%clk 0:00:09.1]} 42... Rd6+ {[%clk 0:00:38.8]} 43. Kc2 {[%clk 0:00:09.3]}
43... Rc6 {[%clk 0:00:38.9]} 44. Rd1+ {[%clk 0:00:09]} 44... Ke6 {[%clk
0:00:39.3]} 45. Re1+ {[%clk 0:00:09.5]} 45... Kf5 {[%clk 0:00:39.7]} 46. Re4
{[%clk 0:00:08.9]} 46... Rg6 {[%clk 0:00:39.2]} 47. g4+ {[%clk 0:00:08.3]} 47...
Kg5 {[%clk 0:00:39]} 48. Ra4 {[%clk 0:00:07.8]} 48... a6 {[%clk 0:00:38.8]} 49.
Ra5+ {[%clk 0:00:07]} 49... Kh4 {[%clk 0:00:39.5]} 50. Rh5+ {[%clk 0:00:06.6]}
50... Kg3 {[%clk 0:00:40.4]} 51. Rxh7 {[%clk 0:00:06.9]} 51... Kxf3 {[%clk
0:00:40.7]} 52. Rxf7+ {[%clk 0:00:07.2]} 52... Kxg4 {[%clk 0:00:41.6]} 53. Rf6
{[%clk 0:00:06.6]} 53... Rg5 {[%clk 0:00:41.5]} 54. Rxa6 {[%clk 0:00:06.1]}
54... Rd5 {[%clk 0:00:42.4]} 55. Rf6 {[%clk 0:00:05.7]} 55... Kg5 {[%clk
0:00:42.5]} 56. Rf2 {[%clk 0:00:05.2]} 56... Kg6 {[%clk 0:00:42.5]} 57. a4
{[%clk 0:00:05.3]} 57... Kg5 {[%clk 0:00:43.4]} 58. a5 {[%clk 0:00:05.3]} 58...
Rd6 {[%clk 0:00:43.4]} 59. b4 {[%clk 0:00:04.9]} 59... Kg6 {[%clk 0:00:44.3]}
60. b5 {[%clk 0:00:04.9]} 60... Rd5 {[%clk 0:00:44.9]} 61. b6 {[%clk 0:00:04.1]}
61... Rb5 {[%clk 0:00:45.8]} 62. Rf1 {[%clk 0:00:03.8]} 62... Kg5 {[%clk
0:00:44.6]} 63. Rb1 {[%clk 0:00:04.3]} 63... Rxb1 {[%clk 0:00:44.4]} 64. Kxb1
{[%clk 0:00:05.2]} 64... Kf5 {[%clk 0:00:45.2]} 65. b7 {[%clk 0:00:05.8]} 65...
Ke4 {[%clk 0:00:46.1]} 66. b8=Q {[%clk 0:00:06]} 66... Kd3 {[%clk 0:00:47]} 67.
Qe8 {[%clk 0:00:06.5]} 67... Kxc3 {[%clk 0:00:47.9]} 68. a6 {[%clk 0:00:07.2]}
68... Kb4 {[%clk 0:00:48.4]} 69. Qe7+ {[%clk 0:00:06.8]} 69... Kb3 {[%clk
0:00:48.1]} 70. Qc7 {[%clk 0:00:07.1]} 70... Kb4 {[%clk 0:00:48.4]} 71. Qb7+
{[%clk 0:00:06.4]} 71... Ka4 {[%clk 0:00:49.3]} 72. Kc2 {[%clk 0:00:05.9]} 72...
Ka3 {[%clk 0:00:50.2]} 73. Qb3# {[%clk 0:00:04.9]} 1-0

[Event "Late-Titled-Tuesday-Blitz-May-28-2024"]
[Site "Chess.com"]
[Date "2024.05.28"]
[Round "4"]
[White "ansko1999"]
[Black "h4parah5"]
[Result "1/2-1/2"]
[WhiteElo "2591"]
[BlackElo "2971"]
[TimeControl "180+1"]
[EndTime "14:39:35 PDT"]
[Termination "Game drawn - insufficient material"]

1. c4 {[%clk 0:03:00.9]} 1... Nf6 {[%clk 0:02:59.3]} 2. Nf3 {[%clk 0:02:59.4]}
2... g6 {[%clk 0:03:00.2]} 3. b3 {[%clk 0:02:58.5]} 3... Bg7 {[%clk 0:03:01.1]}
4. Bb2 {[%clk 0:02:58.6]} 4... O-O {[%clk 0:03:01.5]} 5. g3 {[%clk 0:02:58.8]}
5... d6 {[%clk 0:03:02.4]} 6. d4 {[%clk 0:02:56.6]} 6... e5 {[%clk 0:03:01.3]}
7. dxe5 {[%clk 0:02:55.7]} 7... Ng4 {[%clk 0:02:59]} 8. Nc3 {[%clk 0:02:51.4]}
8... Nxe5 {[%clk 0:02:54.9]} 9. Nxe5 {[%clk 0:02:50.4]} 9... dxe5 {[%clk
0:02:43.8]} 10. Qxd8 {[%clk 0:02:48.2]} 10... Rxd8 {[%clk 0:02:44.7]} 11. Nd5
{[%clk 0:02:47.3]} 11... Rd7 {[%clk 0:02:41.7]} 12. Ba3 {[%clk 0:02:43.1]} 12...
Nc6 {[%clk 0:02:33.6]} 13. Rd1 {[%clk 0:02:29.9]} 13... a5 {[%clk 0:02:16.4]}
14. Bg2 {[%clk 0:02:21.8]} 14... a4 {[%clk 0:02:16.1]} 15. Nxc7 {[%clk
0:01:59.9]} 15... Rxc7 {[%clk 0:02:06.4]} 16. Bxc6 {[%clk 0:01:59.5]} 16... Bh3
{[%clk 0:02:05.4]} 17. Bxa4 {[%clk 0:01:57.2]} 17... e4 {[%clk 0:01:49.1]} 18.
Bb4 {[%clk 0:01:42.9]} 18... h5 {[%clk 0:01:46.8]} 19. f3 {[%clk 0:01:30.8]}
19... e3 {[%clk 0:01:43]} 20. Rd3 {[%clk 0:01:29]} 20... Rxa4 {[%clk 0:01:34.7]}
21. bxa4 {[%clk 0:00:52.1]} 21... Rxc4 {[%clk 0:01:33]} 22. Ba3 {[%clk
0:00:47.4]} 22... Rc2 {[%clk 0:01:31.3]} 23. Rxe3 {[%clk 0:00:42.1]} 23... Rxa2
{[%clk 0:01:29.2]} 24. Bc1 {[%clk 0:00:22.9]} 24... Rxa4 {[%clk 0:01:16.4]} 25.
Rd3 {[%clk 0:00:18]} 25... Ra2 {[%clk 0:01:11.2]} 26. Kf2 {[%clk 0:00:14.6]}
26... b5 {[%clk 0:01:06.6]} 27. Rd2 {[%clk 0:00:12.8]} 27... Ra1 {[%clk
0:01:03.8]} 28. Re1 {[%clk 0:00:11.7]} 28... Ra8 {[%clk 0:00:32.2]} 29. Bb2
{[%clk 0:00:11.2]} 29... Bh6 {[%clk 0:00:32.1]} 30. e3 {[%clk 0:00:11.1]} 30...
Be6 {[%clk 0:00:29.2]} 31. Bd4 {[%clk 0:00:11.1]} 31... Bc4 {[%clk 0:00:28]} 32.
Ra1 {[%clk 0:00:08.4]} 32... Re8 {[%clk 0:00:27.4]} 33. h3 {[%clk 0:00:05.9]}
33... Bg5 {[%clk 0:00:26.6]} 34. g4 {[%clk 0:00:06]} 34... Bh4+ {[%clk
0:00:25.7]} 35. Kg2 {[%clk 0:00:06.3]} 35... Bg5 {[%clk 0:00:25.9]} 36. gxh5
{[%clk 0:00:04]} 36... gxh5 {[%clk 0:00:24.5]} 37. f4 {[%clk 0:00:03.6]} 37...
Be7 {[%clk 0:00:24.2]} 38. Kf3 {[%clk 0:00:03.6]} 38... f6 {[%clk 0:00:23.5]}
39. Rg1+ {[%clk 0:00:03.7]} 39... Kf7 {[%clk 0:00:23.9]} 40. e4 {[%clk
0:00:04.2]} 40... Bf8 {[%clk 0:00:23]} 41. Rdg2 {[%clk 0:00:04.6]} 41... f5
{[%clk 0:00:20.6]} 42. Re1 {[%clk 0:00:02.8]} 42... fxe4+ {[%clk 0:00:19]} 43.
Ke3 {[%clk 0:00:03.3]} 43... b4 {[%clk 0:00:18.4]} 44. Rg5 {[%clk 0:00:02.4]}
44... b3 {[%clk 0:00:17.9]} 45. Rf5+ {[%clk 0:00:02.9]} 45... Ke6 {[%clk
0:00:14.1]} 46. Rxh5 {[%clk 0:00:03]} 46... Rb8 {[%clk 0:00:13]} 47. Re5+ {[%clk
0:00:03.5]} 47... Kd7 {[%clk 0:00:13.1]} 48. Bb2 {[%clk 0:00:03.7]} 48... Bd3
{[%clk 0:00:13.1]} 49. Rd5+ {[%clk 0:00:03.6]} 49... Kc6 {[%clk 0:00:12.9]} 50.
Rxd3 {[%clk 0:00:03.3]} 50... exd3 {[%clk 0:00:13.8]} 51. Kxd3 {[%clk 0:00:04]}
51... Bc5 {[%clk 0:00:13.8]} 52. Rc1 {[%clk 0:00:04.2]} 52... Kd5 {[%clk
0:00:13.8]} 53. Re1 {[%clk 0:00:04]} 53... Bd6 {[%clk 0:00:13.3]} 54. Rf1 {[%clk
0:00:03.6]} 54... Rc8 {[%clk 0:00:12.4]} 55. Bc3 {[%clk 0:00:03.6]} 55... Rh8
{[%clk 0:00:11.5]} 56. Rf3 {[%clk 0:00:03.7]} 56... Rb8 {[%clk 0:00:11.5]} 57.
Bb2 {[%clk 0:00:03.7]} 57... Rb4 {[%clk 0:00:11.3]} 58. f5 {[%clk 0:00:03.6]}
58... Be5 {[%clk 0:00:11.7]} 59. Bxe5 {[%clk 0:00:03.2]} 59... Kxe5 {[%clk
0:00:12.6]} 60. Rf1 {[%clk 0:00:03.4]} 60... Kf6 {[%clk 0:00:12.2]} 61. Kc3
{[%clk 0:00:03.4]} 61... Rh4 {[%clk 0:00:12.1]} 62. Kxb3 {[%clk 0:00:03.5]}
62... Rxh3+ {[%clk 0:00:12.5]} 63. Kc4 {[%clk 0:00:04.3]} 63... Rh5 {[%clk
0:00:13.4]} 64. Kd5 {[%clk 0:00:04.7]} 64... Rxf5+ {[%clk 0:00:13.8]} 65. Rxf5+
{[%clk 0:00:05.6]} 65... Kxf5 {[%clk 0:00:14.7]} 1/2-1/2

[Event "Late-Titled-Tuesday-Blitz-May-28-2024"]
[Site "Chess.com"]
[Date "2024.05.28"]
[Round "4"]
[White "BenchGM"]
[Black "NajdorfPlayerc5"]
[Result "0-1"]
[WhiteElo "2226"]
[BlackElo "2436"]
[TimeControl "180+1"]
[EndTime "14:39:36 PDT"]
[Termination "NajdorfPlayerc5 won by resignation"]

1. e4 {[%clk 0:03:00.9]} 1... c5 {[%clk 0:02:54.3]} 2. Nf3 {[%clk 0:03:01]} 2...
d6 {[%clk 0:02:53]} 3. d4 {[%clk 0:03:00.2]} 3... cxd4 {[%clk 0:02:53.9]} 4.
Nxd4 {[%clk 0:03:00.8]} 4... Nf6 {[%clk 0:02:52.3]} 5. Nc3 {[%clk 0:03:01.1]}
5... e5 {[%clk 0:02:48]} 6. Bb5+ {[%clk 0:02:59.3]} 6... Nbd7 {[%clk 0:02:45.9]}
7. Nf5 {[%clk 0:02:58.4]} 7... a6 {[%clk 0:02:44.2]} 8. Bxd7+ {[%clk 0:02:57.4]}
8... Qxd7 {[%clk 0:02:41.1]} 9. Bg5 {[%clk 0:02:53.2]} 9... Nxe4 {[%clk
0:02:37.7]} 10. Nxg7+ {[%clk 0:02:43.4]} 10... Bxg7 {[%clk 0:02:36.6]} 11. Nxe4
{[%clk 0:02:43.8]} 11... O-O {[%clk 0:02:35.1]} 12. Bf6 {[%clk 0:02:43.5]} 12...
Qf5 {[%clk 0:02:20.3]} 13. Qf3 {[%clk 0:02:42.5]} 13... d5 {[%clk 0:02:01.1]}
14. Qxf5 {[%clk 0:02:35.6]} 14... Bxf5 {[%clk 0:01:59.9]} 15. Bxg7 {[%clk
0:02:35.5]} 15... Kxg7 {[%clk 0:02:00.3]} 16. Nc3 {[%clk 0:02:32.9]} 16... d4
{[%clk 0:01:56.4]} 17. Ne2 {[%clk 0:02:19.8]} 17... Bxc2 {[%clk 0:01:54.5]} 18.
Rc1 {[%clk 0:02:17.5]} 18... Rac8 {[%clk 0:01:51.8]} 19. Kd2 {[%clk 0:02:17.2]}
19... Be4 {[%clk 0:01:51.1]} 20. f4 {[%clk 0:02:16]} 20... f6 {[%clk 0:01:48.4]}
21. Ng3 {[%clk 0:01:55.6]} 21... Bd5 {[%clk 0:01:42.5]} 22. Nf5+ {[%clk
0:01:54.2]} 22... Kh8 {[%clk 0:01:36.3]} 23. Rxc8 {[%clk 0:01:40.2]} 23... Rxc8
{[%clk 0:01:37.2]} 24. Ne7 {[%clk 0:01:40.2]} 24... Bxg2 {[%clk 0:01:14.2]} 25.
Rg1 {[%clk 0:01:38.2]} 25... Re8 {[%clk 0:01:13.4]} 26. Nf5 {[%clk 0:01:30]}
26... Bd5 {[%clk 0:01:06.6]} 27. fxe5 {[%clk 0:01:24.9]} 27... fxe5 {[%clk
0:01:03.8]} 28. b3 {[%clk 0:01:23]} 28... Rf8 {[%clk 0:00:57.7]} 29. Rg5 {[%clk
0:01:15.7]} 29... Rg8 {[%clk 0:00:34.4]} 30. Rh5 {[%clk 0:01:10.3]} 30... Rg2+
{[%clk 0:00:31.3]} 31. Kd3 {[%clk 0:01:09]} 31... Bf3 {[%clk 0:00:22.3]} 32. Rh6
{[%clk 0:00:57]} 32... Rg6 {[%clk 0:00:18.6]} 33. Rh4 {[%clk 0:00:54.7]} 33...
Rf6 {[%clk 0:00:16.5]} 34. Ng3 {[%clk 0:00:48.9]} 34... Bd5 {[%clk 0:00:13.1]}
35. Rh5 {[%clk 0:00:47.7]} 35... Rf3+ {[%clk 0:00:12.9]} 36. Ke2 {[%clk
0:00:46.8]} 36... Re3+ {[%clk 0:00:11.9]} 37. Kd2 {[%clk 0:00:46.7]} 37... Bf3
{[%clk 0:00:08.5]} 38. Rg5 {[%clk 0:00:44.6]} 38... h6 {[%clk 0:00:07.4]} 39.
Rg6 {[%clk 0:00:43]} 39... Kh7 {[%clk 0:00:07.3]} 40. Re6 {[%clk 0:00:42.4]}
40... Bd5 {[%clk 0:00:06.8]} 41. Rd6 {[%clk 0:00:36.8]} 41... Bc6 {[%clk
0:00:06.5]} 42. Nf5 {[%clk 0:00:28.4]} 42... Rh3 {[%clk 0:00:06.3]} 43. Re6
{[%clk 0:00:24.8]} 43... Rxh2+ {[%clk 0:00:05.6]} 44. Kd3 {[%clk 0:00:24.9]}
44... Rh3+ {[%clk 0:00:04.7]} 45. Kd2 {[%clk 0:00:22.7]} 45... Rh2+ {[%clk
0:00:04.7]} 46. Kd3 {[%clk 0:00:22.6]} 46... Bb5+ {[%clk 0:00:03.3]} 47. Ke4
{[%clk 0:00:20.6]} 47... Re2+ {[%clk 0:00:02.9]} 48. Kf3 {[%clk 0:00:20.1]}
48... e4+ {[%clk 0:00:02.9]} 49. Kf4 {[%clk 0:00:19]} 49... Rxa2 {[%clk
0:00:02]} 50. Re7+ {[%clk 0:00:18.6]} 50... Kg6 {[%clk 0:00:01.8]} 51. Rg7+
{[%clk 0:00:18.4]} 51... Kf6 {[%clk 0:00:02.3]} 52. Rxb7 {[%clk 0:00:16.5]}
52... Rf2+ {[%clk 0:00:02.4]} 53. Kxe4 {[%clk 0:00:15.8]} 53... Rxf5 {[%clk
0:00:03.3]} 54. Rb6+ {[%clk 0:00:16.3]} 54... Kg5 {[%clk 0:00:03.5]} 55. Rxh6
{[%clk 0:00:15.1]} 55... Kxh6 {[%clk 0:00:02.8]} 56. Kxf5 {[%clk 0:00:15.3]}
56... d3 {[%clk 0:00:03.3]} 57. Ke4 {[%clk 0:00:16.2]} 57... d2 {[%clk
0:00:04.1]} 58. Kd4 {[%clk 0:00:14.7]} 58... d1=Q+ {[%clk 0:00:05]} 59. Kc5
{[%clk 0:00:14.6]} 59... Qxb3 {[%clk 0:00:04.7]} 0-1

[Event "Late-Titled-Tuesday-Blitz-May-28-2024"]
[Site "Chess.com"]
[Date "2024.05.28"]
[Round "4"]
[White "MeisterJabo"]
[Black "GAZZAN_3000"]
[Result "1-0"]
[WhiteElo "2487"]
[BlackElo "2663"]
[TimeControl "180+1"]
[EndTime "14:39:38 PDT"]
[Termination "MeisterJabo won by checkmate"]

1. e4 {[%clk 0:03:00.9]} 1... c5 {[%clk 0:02:52.6]} 2. Nf3 {[%clk 0:02:58.8]}
2... Nc6 {[%clk 0:02:51.5]} 3. c3 {[%clk 0:02:58.8]} 3... Nf6 {[%clk 0:02:50.5]}
4. e5 {[%clk 0:02:57.5]} 4... Nd5 {[%clk 0:02:50.1]} 5. Bc4 {[%clk 0:02:58.1]}
5... Nb6 {[%clk 0:02:47.8]} 6. Bb3 {[%clk 0:02:58.3]} 6... c4 {[%clk 0:02:47.7]}
7. Bc2 {[%clk 0:02:56.7]} 7... d6 {[%clk 0:02:47.9]} 8. O-O {[%clk 0:02:53.8]}
8... dxe5 {[%clk 0:02:42.9]} 9. Re1 {[%clk 0:02:53.3]} 9... Bg4 {[%clk
0:02:41.8]} 10. h3 {[%clk 0:02:52.6]} 10... Bh5 {[%clk 0:02:26.7]} 11. g4 {[%clk
0:02:46.8]} 11... Bg6 {[%clk 0:02:23.8]} 12. Nxe5 {[%clk 0:02:47.3]} 12... Nxe5
{[%clk 0:02:18.6]} 13. Rxe5 {[%clk 0:02:48.2]} 13... e6 {[%clk 0:02:17.6]} 14.
Bxg6 {[%clk 0:01:56.1]} 14... hxg6 {[%clk 0:02:15.6]} 15. Qf3 {[%clk 0:01:57]}
15... Bd6 {[%clk 0:02:07.2]} 16. Re4 {[%clk 0:01:55.5]} 16... Qc7 {[%clk
0:02:04.8]} 17. Na3 {[%clk 0:01:50.2]} 17... Bxa3 {[%clk 0:02:02.8]} 18. bxa3
{[%clk 0:01:49.3]} 18... O-O-O {[%clk 0:01:43.3]} 19. Rb1 {[%clk 0:01:48.8]}
19... Rd3 {[%clk 0:01:38.6]} 20. Re3 {[%clk 0:01:47.6]} 20... Rhd8 {[%clk
0:01:29]} 21. a4 {[%clk 0:01:45.9]} 21... Nxa4 {[%clk 0:01:18.4]} 22. Rb4 {[%clk
0:01:30.6]} 22... Nb6 {[%clk 0:01:13]} 23. Kg2 {[%clk 0:01:27.8]} 23... R8d6
{[%clk 0:00:58.1]} 24. Rb5 {[%clk 0:01:20]} 24... Qc6 {[%clk 0:00:54.1]} 25.
Rxd3 {[%clk 0:01:07.5]} 25... cxd3 {[%clk 0:00:45.3]} 26. Ba3 {[%clk 0:00:47.7]}
26... Rd5 {[%clk 0:00:27.8]} 27. Rb4 {[%clk 0:00:39.7]} 27... Nc4 {[%clk
0:00:20.5]} 28. Bc1 {[%clk 0:00:32.5]} 28... b5 {[%clk 0:00:19.6]} 29. Qe4
{[%clk 0:00:28.8]} 29... f5 {[%clk 0:00:17.7]} 30. Qf3 {[%clk 0:00:27.6]} 30...
Kb7 {[%clk 0:00:16.8]} 31. a4 {[%clk 0:00:27.3]} 31... a6 {[%clk 0:00:14.3]} 32.
axb5 {[%clk 0:00:26.7]} 32... Rxb5 {[%clk 0:00:13.8]} 33. Rxc4 {[%clk
0:00:25.4]} 33... Qxf3+ {[%clk 0:00:06.6]} 34. Kxf3 {[%clk 0:00:26.3]} 34... e5
{[%clk 0:00:05.7]} 35. gxf5 {[%clk 0:00:25.6]} 35... gxf5 {[%clk 0:00:06.2]} 36.
Ke3 {[%clk 0:00:26.3]} 36... e4 {[%clk 0:00:06.7]} 37. f3 {[%clk 0:00:25.7]}
37... Rb1 {[%clk 0:00:06.8]} 38. fxe4 {[%clk 0:00:21.2]} 38... Rxc1 {[%clk
0:00:06.3]} 39. exf5 {[%clk 0:00:22.1]} 39... Rf1 {[%clk 0:00:05]} 40. Rg4
{[%clk 0:00:18.8]} 40... Rxf5 {[%clk 0:00:04.7]} 41. Rxg7+ {[%clk 0:00:19.3]}
41... Kb6 {[%clk 0:00:05.3]} 42. Kxd3 {[%clk 0:00:20.2]} 42... Rf3+ {[%clk
0:00:05.3]} 43. Kc4 {[%clk 0:00:19]} 43... Rxh3 {[%clk 0:00:06.2]} 44. Rg6+
{[%clk 0:00:19.1]} 44... Ka5 {[%clk 0:00:06.4]} 45. d4 {[%clk 0:00:19.7]} 45...
Rh5 {[%clk 0:00:06]} 46. d5 {[%clk 0:00:19.8]} 46... Rh3 {[%clk 0:00:05.5]} 47.
d6 {[%clk 0:00:17.5]} 47... Kb6 {[%clk 0:00:06.1]} 48. Kd5 {[%clk 0:00:12.9]}
48... Rxc3 {[%clk 0:00:05.5]} 49. Rg8 {[%clk 0:00:11.1]} 49... Rd3+ {[%clk
0:00:05.3]} 50. Ke6 {[%clk 0:00:11.4]} 50... a5 {[%clk 0:00:05.7]} 51. d7 {[%clk
0:00:06.7]} 51... Re3+ {[%clk 0:00:03.6]} 52. Kd6 {[%clk 0:00:06.3]} 52... Rd3+
{[%clk 0:00:04]} 53. Ke7 {[%clk 0:00:06.7]} 53... Re3+ {[%clk 0:00:03]} 54. Kf6
{[%clk 0:00:05.9]} 54... Rf3+ {[%clk 0:00:02.9]} 55. Ke5 {[%clk 0:00:06]} 55...
Rd3 {[%clk 0:00:02.3]} 56. d8=Q+ {[%clk 0:00:05.6]} 56... Rxd8 {[%clk 0:00:03]}
57. Rxd8 {[%clk 0:00:06.1]} 57... Kc5 {[%clk 0:00:03.9]} 58. Rc8+ {[%clk
0:00:05.9]} 58... Kb4 {[%clk 0:00:04.4]} 59. Kd4 {[%clk 0:00:06.8]} 59... a4
{[%clk 0:00:05.1]} 60. Rb8+ {[%clk 0:00:07]} 60... Ka3 {[%clk 0:00:05.5]} 61.
Kc3 {[%clk 0:00:06.9]} 61... Ka2 {[%clk 0:00:06.1]} 62. Kc2 {[%clk 0:00:06.6]}
62... a3 {[%clk 0:00:06.4]} 63. Ra8 {[%clk 0:00:05.9]} 63... Ka1 {[%clk
0:00:07.3]} 64. Rxa3# {[%clk 0:00:05.9]} 1-0

[Event "Late-Titled-Tuesday-Blitz-May-28-2024"]
[Site "Chess.com"]
[Date "2024.05.28"]
[Round "4"]
[White "HowTo2Draw"]
[Black "Boninknights"]
[Result "1-0"]
[WhiteElo "2571"]
[BlackElo "2416"]
[TimeControl "180+1"]
[EndTime "14:39:39 PDT"]
[Termination "HowTo2Draw won on time"]

1. c4 {[%clk 0:03:00.9]} 1... Nf6 {[%clk 0:02:58.4]} 2. g3 {[%clk 0:02:59.3]}
2... g6 {[%clk 0:02:53]} 3. Bg2 {[%clk 0:02:59.2]} 3... Bg7 {[%clk 0:02:52.9]}
4. Nf3 {[%clk 0:02:58.6]} 4... O-O {[%clk 0:02:52.5]} 5. O-O {[%clk 0:02:59.1]}
5... c6 {[%clk 0:02:50.5]} 6. d4 {[%clk 0:02:57.5]} 6... d6 {[%clk 0:02:49.9]}
7. Nc3 {[%clk 0:02:53.5]} 7... Qa5 {[%clk 0:02:48.9]} 8. h3 {[%clk 0:02:46.5]}
8... h6 {[%clk 0:02:44.9]} 9. Bd2 {[%clk 0:02:39.2]} 9... Qa6 {[%clk 0:02:38.7]}
10. b3 {[%clk 0:02:31.6]} 10... Nbd7 {[%clk 0:02:25.8]} 11. Qc1 {[%clk
0:02:31.1]} 11... Kh7 {[%clk 0:02:23.8]} 12. Qb2 {[%clk 0:02:25.6]} 12... e5
{[%clk 0:02:20.5]} 13. dxe5 {[%clk 0:02:24.2]} 13... dxe5 {[%clk 0:02:19.2]} 14.
e4 {[%clk 0:02:15.9]} 14... Re8 {[%clk 0:02:17.8]} 15. Be3 {[%clk 0:02:14.4]}
15... Bf8 {[%clk 0:02:12]} 16. a3 {[%clk 0:02:02.2]} 16... Nc5 {[%clk
0:02:06.3]} 17. Nd2 {[%clk 0:01:57]} 17... Be6 {[%clk 0:01:58.6]} 18. Rfd1
{[%clk 0:01:41.9]} 18... Rad8 {[%clk 0:01:55]} 19. Bf1 {[%clk 0:01:41.5]} 19...
b6 {[%clk 0:01:39.8]} 20. Qc2 {[%clk 0:01:39.5]} 20... Qb7 {[%clk 0:01:35.4]}
21. b4 {[%clk 0:01:39.1]} 21... Ncd7 {[%clk 0:01:28.6]} 22. Nb3 {[%clk
0:01:36.5]} 22... c5 {[%clk 0:01:16.2]} 23. b5 {[%clk 0:01:22.8]} 23... Bg7
{[%clk 0:01:07.9]} 24. a4 {[%clk 0:01:17.6]} 24... a5 {[%clk 0:01:04.8]} 25. Nd5
{[%clk 0:01:03.3]} 25... Nf8 {[%clk 0:01:01.9]} 26. Bg2 {[%clk 0:01:02.2]} 26...
Bc8 {[%clk 0:00:59.9]} 27. Rf1 {[%clk 0:00:52.6]} 27... Ne6 {[%clk 0:00:57.8]}
28. Rae1 {[%clk 0:00:49]} 28... Nd4 {[%clk 0:00:56.3]} 29. Qb1 {[%clk
0:00:45.6]} 29... Nxd5 {[%clk 0:00:46.8]} 30. exd5 {[%clk 0:00:35.4]} 30... Bf5
{[%clk 0:00:44.8]} 31. Qa2 {[%clk 0:00:27.2]} 31... Bd3 {[%clk 0:00:41.7]} 32.
Nd2 {[%clk 0:00:23.8]} 32... e4 {[%clk 0:00:32.7]} 33. Kh2 {[%clk 0:00:18.2]}
33... Bxf1 {[%clk 0:00:31]} 34. Rxf1 {[%clk 0:00:14.7]} 34... f5 {[%clk
0:00:30.6]} 35. Nb3 {[%clk 0:00:12.6]} 35... Be5 {[%clk 0:00:28.5]} 36. Kg1
{[%clk 0:00:12]} 36... g5 {[%clk 0:00:27.1]} 37. Rd1 {[%clk 0:00:12.2]} 37...
Nf3+ {[%clk 0:00:21]} 38. Kh1 {[%clk 0:00:10.9]} 38... f4 {[%clk 0:00:20.5]} 39.
gxf4 {[%clk 0:00:10.6]} 39... gxf4 {[%clk 0:00:19.7]} 40. Bc1 {[%clk 0:00:11.2]}
40... Rg8 {[%clk 0:00:18.5]} 41. Qc2 {[%clk 0:00:11.5]} 41... Ng5 {[%clk
0:00:16.5]} 42. Bxe4+ {[%clk 0:00:10.7]} 42... Kh8 {[%clk 0:00:15.1]} 43. Bf5
{[%clk 0:00:10.3]} 43... Qf7 {[%clk 0:00:12.1]} 44. Bb2 {[%clk 0:00:07.7]} 44...
Bxb2 {[%clk 0:00:07.9]} 45. Qxb2+ {[%clk 0:00:08.6]} 45... Qg7 {[%clk
0:00:07.5]} 46. Qxg7+ {[%clk 0:00:08.2]} 46... Rxg7 {[%clk 0:00:06.9]} 47. Nc1
{[%clk 0:00:08.5]} 47... Nf3 {[%clk 0:00:06.1]} 48. Ne2 {[%clk 0:00:08.3]} 48...
Re8 {[%clk 0:00:05.5]} 49. Nxf4 {[%clk 0:00:06.7]} 49... Reg8 {[%clk 0:00:05.4]}
50. Bg4 {[%clk 0:00:06.3]} 50... Ne5 {[%clk 0:00:02.4]} 51. Ne6 {[%clk
0:00:06.2]} 51... Nxg4 {[%clk 0:00:01.9]} 52. Nxg7 {[%clk 0:00:06.4]} 52...
Nxf2+ {[%clk 0:00:02]} 53. Kh2 {[%clk 0:00:07.1]} 53... Nxd1 {[%clk 0:00:01.8]}
54. Nf5 {[%clk 0:00:07.6]} 54... Ne3 {[%clk 0:00:01.6]} 55. d6 {[%clk
0:00:08.5]} 55... Nxf5 {[%clk 0:00:01]} 56. d7 {[%clk 0:00:09.4]} 56... Ne7
{[%clk 0:00:00.9]} 57. d8=Q {[%clk 0:00:10.3]} 57... Rxd8 {[%clk 0:00:00.8]} 58.
h4 {[%clk 0:00:11.2]} 58... Rd4 {[%clk 0:00:01]} 59. h5 {[%clk 0:00:12.1]} 59...
Rxc4 {[%clk 0:00:01.1]} 60. Kh3 {[%clk 0:00:13]} 1-0